bitfinex/quotes_SOLUSD_20251117
["timestamp","ask_amount","ask_price","bid_price","bid_amount"]
[1763408123965,50.0,130.59,130.58,9.78882769]
[1763408124259,50.0,130.59,130.58,24.71102986]
[1763408124457,50.0,130.59,130.51,0.69]
[1763408124458,50.0,130.53,130.52,9.78882769]
[1763408124663,50.0,130.56,130.55,18.12096]
[1763408124965,50.0,130.57,130.56,9.78882769]
[1763408125435,50.0,130.57,130.56,10.47882769]
[1763408125631,50.0,130.57,130.56,40.32323203]
[1763408125836,50.0,130.61,130.59,27.90978769]
[1763408126062,100.71,130.61,130.6,24.71102986]
[1763408126237,50.0,130.61,130.6,24.71102986]
[1763408126560,50.0,130.65,130.64,27.90978769]
[1763408126742,50.0,130.66,130.65,9.78882769]
[1763408126944,50.0,130.66,130.65,24.71102986]
[1763408127153,50.0,130.69,130.6,9.78882769]
[1763408127154,50.0,130.62,130.6,9.78882769]
[1763408127382,50.0,130.69,130.6,9.78882769]
[1763408127383,50.0,130.64,130.63,27.90978769]
[1763408127542,50.0,130.64,130.63,42.83198986]
[1763408128061,50.0,130.64,130.63,24.71102986]
[1763408128253,50.0,130.65,130.64,9.78882769]
[1763408128438,50.0,130.65,130.64,24.71102986]
[1763408128637,50.0,130.66,130.64,24.71102986]
[1763408128960,50.0,130.69,130.67,9.78882769]
[1763408129269,50.0,130.71,130.69,9.78882769]
[1763408129453,50.0,130.72,130.71,9.78882769]
[1763408129644,50.0,130.72,130.71,24.71102986]
[1763408130037,50.0,130.74,130.73,27.90978769]
[1763408130244,0.1,130.78,130.77,9.78882769]
[1763408130442,14.92220217,130.9,130.77,9.78882769]
[1763408130443,50.0,130.86,130.79,27.90978769]
[1763408130646,50.0,130.81,130.8,9.78882769]
[1763408130837,50.0,130.85,130.84,9.78882769]
[1763408131151,50.0,130.91,130.84,9.78882769]
[1763408131152,50.0,130.87,130.84,9.78882769]
[1763408131350,50.0,130.88,130.87,9.78882769]
[1763408131647,50.0,130.92,130.91,9.78882769]
[1763408131846,50.0,130.92,130.91,24.71102986]
[1763408132069,0.2,130.93,130.91,25.40102986]
[1763408132406,50.0,130.96,130.94,27.90978769]
[1763408132667,50.0,130.96,130.94,47.57198986]
[1763408133270,50.0,130.96,130.94,42.83198986]
[1763408134483,50.0,130.96,130.95,9.78882769]
[1763408134973,0.1,131.0,130.98,9.78882769]
[1763408135180,50.0,131.03,131.02,9.78882769]
[1763408135358,50.0,131.03,131.02,47.57198986]
[1763408135877,50.0,131.04,131.03,9.78882769]
[1763408136170,50.0,131.08,131.06,18.12096]
[1763408136368,50.0,131.1,131.09,27.90978769]
[1763408136580,50.1,131.16,131.09,27.90978769]
[1763408136581,50.0,131.12,131.1,9.78882769]
[1763408136783,50.0,131.14,131.12,9.78882769]
[1763408137080,50.1,131.16,131.15,27.90978769]
[1763408137288,50.1,131.16,131.15,47.57198986]
[1763408137289,0.1,131.16,131.15,47.57198986]
[1763408137592,50.0,131.24,131.23,9.78882769]
[1763408137767,50.0,131.24,131.23,24.71102986]
[1763408138146,50.0,131.24,131.2,22.86096]
[1763408138147,50.0,131.2,131.18,9.78882769]
[1763408138548,50.0,131.2,131.19,24.71102986]
[1763408138791,50.0,131.2,131.19,9.78882769]
[1763408139151,50.71,131.2,131.19,9.78882769]
[1763408139373,50.0,131.2,131.19,9.78882769]
[1763408139596,50.0,131.2,131.17,18.12096]
[1763408139597,50.0,131.21,131.2,9.78882769]
[1763408139764,50.0,131.15,131.14,61.46971683]
[1763408140085,50.0,131.18,131.17,27.90978769]
[1763408140259,50.0,131.2,131.18,9.78882769]
[1763408140580,50.0,131.2,131.19,24.71102986]
[1763408140882,50.0,131.23,131.22,27.90978769]
[1763408141056,50.0,131.26,131.23,9.78882769]
[1763408141253,50.0,131.34,131.23,9.78882769]
[1763408141254,50.0,131.29,131.28,27.90978769]
[1763408141476,50.0,131.29,131.28,42.83198986]
[1763408141692,0.71,131.34,131.29,9.78882769]
[1763408141693,50.0,131.3,131.29,9.78882769]
[1763408141896,50.0,131.32,131.29,30.15102986]
[1763408142057,50.0,131.34,131.33,27.90978769]
[1763408142384,50.0,131.36,131.33,47.57198986]
[1763408142587,50.0,131.39,131.38,27.90978769]
[1763408142880,38.8611137,131.55,131.42,9.78882769]
[1763408142881,50.0,131.43,131.42,9.78882769]
[1763408143085,50.0,131.43,131.42,47.57198986]
[1763408143393,50.0,131.44,131.43,9.78882769]
[1763408143557,0.66,131.49,131.46,27.90978769]
[1763408143558,50.0,131.47,131.46,27.90978769]
[1763408143960,50.66,131.47,131.46,7.45882769]
[1763408144153,50.0,131.43,131.38,18.12096]
[1763408144464,50.0,131.5,131.4,18.12096]
[1763408144465,50.0,131.41,131.4,18.12096]
[1763408144770,50.0,131.38,131.34,3.98957681]
[1763408144954,50.0,131.35,131.34,3.98957681]
[1763408145659,50.0,131.35,131.34,18.91177898]
[1763408146065,100.0,131.35,131.34,3.41957681]
[1763408146285,114.92220217,131.35,131.34,3.41957681]
[1763408146881,116.92220217,131.35,131.34,3.41957681]
[1763408147384,126.71102986,131.35,131.34,3.41957681]
[1763408147678,100.0,131.35,131.34,3.41957681]
[1763408148101,118.12096,131.35,131.34,9.78882769]
[1763408148388,50.0,131.35,131.34,24.71102986]
[1763408148561,50.0,131.35,131.34,25.41102986]
[1763408149186,50.0,131.36,131.35,9.78882769]
[1763408149364,50.0,131.36,131.35,25.41102986]
[1763408149562,2.0,131.52,131.35,25.41102986]
[1763408149773,41.42755354,131.6,131.39,9.78882769]
[1763408149774,50.0,131.41,131.39,9.78882769]
[1763408149998,50.0,131.45,131.43,27.90978769]
[1763408150196,50.0,131.45,131.44,24.71102986]
[1763408150385,50.0,131.46,131.45,9.78882769]
[1763408150616,50.0,131.54,131.48,27.90978769]
[1763408150782,50.0,131.54,131.53,14.92220217]
[1763408150980,52.39230167,131.6,131.53,14.92220217]
[1763408150981,50.0,131.57,131.56,27.90978769]
[1763408151289,2.39230167,131.6,131.57,9.78882769]
[1763408151493,2.39230167,131.6,131.49,38.09912798]
[1763408151494,50.21230167,131.6,131.59,42.83198986]
[1763408151723,0.21230167,131.6,131.59,47.61198986]
[1763408152005,50.0,131.66,131.59,47.61198986]
[1763408152180,50.0,131.66,131.57,33.55992914]
[1763408152181,0.66,131.67,131.6,0.75987841]
[1763408152381,0.66,131.67,131.57,33.55992914]
[1763408152382,50.0,131.63,131.58,9.78882769]
[1763408152583,50.0,131.58,131.48,4.78]
[1763408152784,50.0,131.58,131.51,18.12096]
[1763408153006,50.0,131.56,131.32,72.72342506]
[1763408153200,50.0,131.53,131.46,12.50136746]
[1763408153389,50.0,131.49,131.42,4.78]
[1763408153583,50.0,131.45,131.43,0.7]
[1763408153785,50.0,131.48,131.45,18.12096]
[1763408154124,50.0,131.36,131.35,33.55992914]
[1763408154323,0.72,131.47,131.35,46.7612966]
[1763408154324,50.0,131.4,131.35,46.7612966]
[1763408154609,30.62232746,131.45,131.3,0.7]
[1763408154782,50.0,131.34,131.3,0.7]
[1763408154986,50.0,131.28,131.26,0.7]
[1763408155322,50.0,131.28,131.23,18.12096]
[1763408155614,50.0,131.27,131.24,0.7]
[1763408155817,50.0,131.25,131.24,0.7]
[1763408156122,50.0,131.27,131.24,0.7]
[1763408156298,50.0,131.27,131.26,12.50136746]
[1763408156504,20.12096,131.38,131.26,12.50136746]
[1763408156505,50.0,131.32,131.26,12.50136746]
[1763408156838,50.0,131.37,131.36,9.78882769]
[1763408156988,50.0,131.4,131.39,9.78882769]
[1763408157188,50.0,131.4,131.39,22.29019515]
[1763408157494,50.0,131.34,131.33,9.78882769]
[1763408157817,50.0,131.39,131.37,9.78882769]
[1763408158113,50.0,131.39,131.38,22.29019515]
[1763408158523,50.0,131.33,131.32,18.12096]
[1763408158737,50.0,131.3,131.27,4.8]
[1763408158944,50.0,131.3,131.29,12.50136746]
[1763408159521,50.0,131.3,131.29,31.32232746]
[1763408159818,50.0,131.3,131.29,12.50136746]
[1763408160115,50.0,131.3,131.29,22.29019515]
[1763408160299,50.0,131.3,131.29,12.50136746]
[1763408160499,50.0,131.3,131.29,13.20136746]
[1763408160699,50.0,131.33,131.32,27.90978769]
[1763408160946,50.0,131.37,131.36,27.90978769]
[1763408161259,50.0,131.38,131.37,9.78882769]
[1763408161388,50.0,131.31,131.28,0.7]
[1763408161589,50.0,131.31,131.3,22.29019515]
[1763408162031,50.0,131.31,131.3,9.78882769]
[1763408162197,50.0,131.27,131.24,4.8]
[1763408162395,50.0,131.27,131.26,40.41115515]
[1763408162594,12.50136746,131.39,131.26,40.41115515]
[1763408162595,50.0,131.36,131.34,27.90978769]
[1763408162812,2.0,131.49,131.33,18.12096]
[1763408162813,50.0,131.39,131.38,27.90978769]
[1763408163123,50.0,131.39,131.38,9.78882769]
[1763408163333,50.0,131.39,131.19,71.67217846]
[1763408163334,50.0,131.32,131.31,27.90978769]
[1763408163494,50.0,131.27,131.21,0.76213703]
[1763408163693,50.0,131.27,131.26,12.50136746]
[1763408163917,50.0,131.27,131.2,4.8]
[1763408164119,50.0,131.22,131.16,5.52]
[1763408164355,50.0,131.22,131.09,33.55992914]
[1763408164356,50.0,131.18,131.12,0.7]
[1763408164647,52.0,131.24,131.04,12.50136746]
[1763408164648,50.0,131.1,131.04,12.50136746]
[1763408164825,50.0,131.08,131.05,4.82]
[1763408165050,50.0,131.1,131.07,18.12096]
[1763408165253,50.0,131.12,131.09,12.50136746]
[1763408165415,50.0,131.14,131.13,18.12096]
[1763408165615,50.0,131.12,131.11,4.82]
[1763408165819,50.0,131.17,131.12,9.78882769]
[1763408166033,0.66,131.24,131.14,9.78882769]
[1763408166034,50.0,131.18,131.14,9.78882769]
[1763408166224,50.0,131.22,131.2,9.78882769]
[1763408166523,50.0,131.24,131.22,9.78882769]
[1763408166723,50.0,131.24,131.23,22.29019515]
[1763408166926,50.0,131.19,131.17,0.7]
[1763408167134,50.0,131.21,131.2,27.90978769]
[1763408167416,50.0,131.23,131.21,9.78882769]
[1763408167618,50.0,131.23,131.22,12.50136746]
[1763408167823,50.0,131.16,131.14,9.78882769]
[1763408168120,50.0,131.16,131.05,0.76306753]
[1763408168121,50.0,131.16,131.15,12.50136746]
[1763408168524,0.72,131.17,131.07,4.82]
[1763408168525,50.0,131.09,131.07,4.82]
[1763408168717,50.0,131.09,131.08,12.50136746]
[1763408169149,50.0,131.11,131.1,18.12096]
[1763408169375,0.72,131.29,131.1,18.12096]
[1763408169376,50.0,131.17,131.11,9.78882769]
[1763408169546,18.12096,131.25,131.11,9.78882769]
[1763408169547,50.0,131.13,131.11,10.48882769]
[1763408169744,50.0,131.13,131.12,22.29019515]
[1763408169944,50.0,131.13,131.12,22.99019515]
[1763408170347,50.0,131.17,131.16,9.78882769]
[1763408170562,50.0,131.17,131.16,22.29019515]
[1763408170844,50.0,131.19,131.18,27.90978769]
[1763408171151,50.0,131.21,131.19,9.78882769]
[1763408171375,50.0,131.21,131.2,22.29019515]
[1763408172266,100.0,131.21,131.2,12.50136746]
[1763408172469,100.7,131.21,131.09,0.68]
[1763408172662,50.0,131.18,131.1,4.84]
[1763408172975,50.0,131.14,131.08,0.42348583]
[1763408173145,50.0,131.12,131.09,4.84]
[1763408173341,54.84,131.19,131.09,4.84]
[1763408173342,50.0,131.16,131.09,4.84]
[1763408173545,50.0,131.18,131.1,18.12096]
[1763408173975,50.0,131.18,131.17,43.12369492]
[1763408174292,50.0,131.18,131.17,30.62232746]
[1763408174466,50.0,131.18,131.17,12.50136746]
[1763408174774,50.95288915,131.18,131.17,11.10136746]
[1763408174946,50.95288915,131.18,131.06,0.68]
[1763408174947,50.0,131.09,131.06,0.68]
[1763408175286,50.0,131.05,131.04,12.50136746]
[1763408175448,4.84,131.14,131.07,18.12096]
[1763408175449,50.0,131.09,131.07,18.12096]
[1763408175647,50.0,131.12,131.11,18.12096]
[1763408175984,50.0,131.12,131.08,0.68]
[1763408176282,54.84,131.17,131.09,0.68]
[1763408176283,50.0,131.13,131.09,0.68]
[1763408176483,4.84,131.17,131.16,27.90978769]
[1763408176484,50.0,131.17,131.16,27.90978769]
[1763408176690,0.95209079,131.29,131.21,9.78882769]
[1763408176691,50.0,131.22,131.21,9.78882769]
[1763408176894,50.0,131.24,131.23,27.90978769]
[1763408177060,4.84,131.31,131.23,27.90978769]
[1763408177061,50.0,131.26,131.24,9.78882769]
[1763408177260,50.0,131.21,131.19,4.84]
[1763408177566,50.0,131.21,131.2,40.41115515]
[1763408177782,50.0,131.28,131.25,27.90978769]
[1763408178097,50.0,131.3,131.28,9.78882769]
[1763408178399,54.84,131.37,131.31,27.90978769]
[1763408178400,50.0,131.32,131.31,27.90978769]
[1763408178561,50.0,131.32,131.31,22.29019515]
[1763408178891,50.0,131.32,131.31,12.50136746]
[1763408179086,50.0,131.24,131.23,27.90978769]
[1763408179285,50.0,131.26,131.24,27.90978769]
[1763408179594,50.0,131.22,131.18,12.50136746]
[1763408179768,50.0,131.22,131.21,27.90978769]
[1763408179974,5.79223584,131.27,131.15,0.67]
[1763408179975,50.0,131.16,131.15,0.67]
[1763408180162,4.84,131.24,131.1,5.51]
[1763408180163,50.0,131.12,131.1,5.51]
[1763408180491,50.0,131.1,131.07,4.84]
[1763408180788,4.84,131.15,131.07,4.84]
[1763408180789,50.0,131.08,131.07,4.84]
[1763408180980,50.0,131.12,131.08,0.67]
[1763408181294,50.0,131.14,131.11,12.50136746]
[1763408181495,50.0,131.14,131.13,12.50136746]
[1763408181696,50.0,131.1,131.07,4.84]
[1763408181867,50.0,131.17,131.11,0.67]
[1763408182200,50.0,131.17,131.16,12.50136746]
[1763408182871,100.0,131.17,131.16,12.50136746]
[1763408183084,50.0,131.17,131.16,12.50136746]
[1763408183893,50.0,131.15,131.14,9.78882769]
[1763408184091,50.0,131.17,131.15,9.78882769]
[1763408184467,50.0,131.11,131.08,5.51]
[1763408184792,50.0,131.13,131.11,9.78882769]
[1763408184967,50.0,131.13,131.12,22.29019515]
[1763408185292,50.0,131.08,131.06,0.67]
[1763408185472,50.0,131.08,131.07,30.62232746]
[1763408185669,50.0,131.1,131.09,9.78882769]
[1763408186063,50.0,131.1,131.09,28.57978769]
[1763408186283,50.0,131.1,131.08,9.78882769]
[1763408186687,50.0,131.06,131.05,0.67]
[1763408186990,50.0,131.06,130.97,0.67]
[1763408186991,50.0,131.0,130.97,0.67]
[1763408187198,50.0,131.0,130.99,12.50136746]
[1763408187694,50.0,130.96,130.94,0.67]
[1763408187990,50.0,130.96,130.95,12.50136746]
[1763408188206,50.0,130.94,130.93,4.84]
[1763408188409,54.84,131.01,130.96,18.12096]
[1763408188410,50.0,130.98,130.96,18.12096]
[1763408188566,50.0,130.98,130.94,0.67]
[1763408188567,50.0,130.98,130.97,12.50136746]
[1763408188769,50.0,130.98,130.97,22.29019515]
[1763408189212,50.0,130.98,130.97,41.08115515]
[1763408189383,50.0,130.98,130.97,40.41115515]
[1763408189768,50.0,130.98,130.97,22.29019515]
[1763408190598,50.0,130.94,130.93,4.84]
[1763408190768,50.0,130.94,130.93,22.29019515]
[1763408190974,50.0,130.96,130.95,27.90978769]
[1763408191171,50.0,130.96,130.95,40.41115515]
[1763408191384,50.0,130.92,130.91,0.2]
[1763408191573,50.0,130.92,130.91,12.70136746]
[1763408191788,50.0,130.94,130.93,27.90978769]
[1763408191991,50.0,130.94,130.93,40.41115515]
[1763408192508,50.0,130.94,130.91,0.87]
[1763408192509,100.0,130.92,130.91,0.2]
[1763408192717,50.0,130.92,130.91,0.2]
[1763408193009,50.0,130.92,130.91,28.10978769]
[1763408193392,50.0,130.92,130.91,0.2]
[1763408193914,50.95478154,130.92,130.91,0.2]
[1763408194121,50.95478154,130.92,130.91,12.70136746]
[1763408194414,50.95478154,130.92,130.91,0.2]
[1763408194593,50.95478154,130.92,130.91,12.70136746]
[1763408194594,50.0,130.92,130.91,12.70136746]
[1763408194923,50.0,130.92,130.91,22.49019515]
[1763408196079,50.0,130.92,130.91,23.16019515]
[1763408196281,50.0,130.92,130.91,22.49019515]
[1763408196891,50.0,130.92,130.91,9.98882769]
[1763408197216,50.0,130.95,130.91,23.16019515]
[1763408197380,50.0,131.01,130.95,18.12096]
[1763408197722,50.0,131.02,130.98,9.78882769]
[1763408197895,50.0,130.99,130.93,1.09578335]
[1763408198083,50.0,130.92,130.91,9.98882769]
[1763408198282,50.0,130.92,130.91,10.65882769]
[1763408198482,50.0,130.94,130.91,10.65882769]
[1763408198712,50.0,130.94,130.93,40.41115515]
[1763408199322,50.0,130.94,130.93,22.29019515]
[1763408199833,50.0,130.94,130.93,12.50136746]
[1763408200137,50.0,130.92,130.91,0.2]
[1763408200427,50.0,130.92,130.91,12.70136746]
[1763408200836,50.0,130.92,130.91,22.49019515]
[1763408201022,50.0,130.92,130.91,23.16019515]
[1763408201206,50.0,130.92,130.91,40.61115515]
[1763408201412,50.0,130.94,130.92,9.78882769]
[1763408201617,50.0,130.94,130.93,40.41115515]
[1763408202015,50.0,130.94,130.93,9.78882769]
[1763408202215,50.0,130.92,130.91,28.10978769]
[1763408202442,50.0,130.92,130.91,22.49019515]
[1763408202947,50.0,130.92,130.91,12.70136746]
[1763408203246,50.0,130.92,130.91,22.49019515]
[1763408204236,50.0,130.92,130.91,28.10978769]
[1763408204438,50.0,130.92,130.91,40.61115515]
[1763408204624,50.0,130.92,130.91,41.30115515]
[1763408204811,50.0,130.92,130.91,40.61115515]
[1763408205032,50.0,130.92,130.91,9.98882769]
[1763408205340,50.0,130.92,130.91,22.49019515]
[1763408205641,50.0,130.92,130.91,23.18019515]
[1763408206536,4.86,130.97,130.91,23.18019515]
[1763408206537,50.0,130.94,130.92,9.78882769]
[1763408206720,50.0,130.94,130.93,22.29019515]
[1763408207679,50.0,130.94,130.93,40.41115515]
[1763408207952,50.0,130.99,130.93,40.41115515]
[1763408207953,50.0,130.96,130.94,9.78882769]
[1763408208139,50.0,130.92,130.91,0.2]
[1763408208344,50.0,130.92,130.91,12.70136746]
[1763408208724,50.0,130.92,130.91,0.2]
[1763408208961,50.0,130.92,130.91,22.49019515]
[1763408209149,50.0,130.92,130.91,12.70136746]
[1763408209527,100.95478154,130.92,130.91,12.70136746]
[1763408209733,100.0,130.92,130.91,12.70136746]
[1763408210046,100.0,130.92,130.91,0.2]
[1763408210249,100.95478154,130.92,130.91,0.2]
[1763408210642,100.95478154,130.92,130.91,12.70136746]
[1763408210819,50.0,130.92,130.91,12.70136746]
[1763408211142,100.0,130.92,130.91,12.70136746]
[1763408211330,50.0,130.92,130.91,22.49019515]
[1763408212126,50.0,130.92,130.91,23.18019515]
[1763408212328,50.0,130.95,130.92,9.78882769]
[1763408212544,50.0,130.95,130.94,22.29019515]
[1763408212917,50.0,130.95,130.94,25.29536752]
[1763408213347,50.0,130.98,130.95,27.90978769]
[1763408213548,6.22424051,131.21,130.95,27.90978769]
[1763408213549,50.0,131.02,130.98,27.90978769]
[1763408213729,50.0,131.03,131.02,9.78882769]
[1763408213921,50.0,131.03,131.02,24.60536752]
[1763408214129,50.0,131.03,131.02,25.29536752]
[1763408214739,50.0,131.03,131.02,24.60536752]
[1763408214940,50.0,131.03,131.02,14.81653983]
[1763408215362,50.0,131.03,131.02,25.29536752]
[1763408215521,50.0,131.05,131.03,9.78882769]
[1763408215721,38.91581488,131.27,130.94,38.12270081]
[1763408215722,50.0,131.06,131.05,9.78882769]
[1763408215949,50.0,131.06,131.05,24.60536752]
[1763408216157,50.0,131.06,131.05,25.29536752]
[1763408216335,50.0,131.06,131.05,24.60536752]
[1763408217324,50.0,131.06,131.05,25.29536752]
[1763408217569,50.0,131.06,131.05,24.60536752]
[1763408218962,50.0,131.06,131.05,25.29536752]
[1763408219177,4.84,131.09,131.01,4.84]
[1763408219178,50.0,131.02,131.01,4.84]
[1763408219328,50.0,131.02,131.01,24.60536752]
[1763408219670,50.0,131.02,131.01,25.29536752]
[1763408220156,50.0,131.04,131.02,9.78882769]
[1763408220324,50.0,131.02,131.01,32.74978769]
[1763408220530,50.0,131.02,131.01,42.72632752]
[1763408220729,50.0,131.02,131.01,43.41632752]
[1763408220964,50.0,131.04,131.02,9.78882769]
[1763408221260,50.0,131.12,131.1,9.78882769]
[1763408221556,50.0,131.14,131.12,9.78882769]
[1763408221861,50.0,131.1,131.09,18.12096]
[1763408222030,50.0,131.1,131.09,27.90978769]
[1763408222226,50.0,131.1,131.09,9.78882769]
[1763408222465,50.0,131.03,130.99,0.69]
[1763408222644,50.0,131.01,130.99,0.69]
[1763408222846,50.0,131.03,131.02,9.78882769]
[1763408223167,50.0,130.97,130.96,4.84]
[1763408223337,50.0,130.95,130.94,0.69]
[1763408223540,50.0,130.92,130.91,0.2]
[1763408224075,54.84,130.92,130.91,0.2]
[1763408224524,55.79478154,130.92,130.91,0.2]
[1763408224726,57.79478154,130.92,130.91,0.2]
[1763408224941,90.73228137,130.92,130.91,0.2]
[1763408225142,75.91574154,130.92,130.91,0.2]
[1763408225543,55.79478154,130.92,130.91,0.2]
[1763408225747,54.84,130.92,130.91,15.01653983]
[1763408225944,55.79478154,130.92,130.91,0.2]
[1763408226158,57.79478154,130.92,130.91,0.2]
[1763408226361,75.91574154,130.92,130.91,0.2]
[1763408226659,55.79478154,130.92,130.91,0.2]
[1763408226848,57.79478154,130.92,130.91,0.2]
[1763408227044,55.79478154,130.92,130.91,15.01653983]
[1763408227262,55.79478154,130.92,130.91,0.2]
[1763408227468,72.61132137,130.92,130.91,0.2]
[1763408228338,82.40014906,130.92,130.91,0.2]
[1763408229369,100.78014906,130.92,130.91,0.2]
[1763408229534,100.78014906,130.92,130.84,0.2]
[1763408229535,111.78882769,130.85,130.84,0.2]
[1763408229739,132.40065983,130.85,130.84,0.2]
[1763408229937,100.95529231,130.85,130.84,0.2]
[1763408230238,123.91625231,130.85,130.84,0.2]
[1763408230759,125.91625231,130.85,130.84,0.2]
[1763408231076,107.79529231,130.85,130.84,0.2]
[1763408231362,122.61183214,130.85,130.84,0.2]
[1763408231579,132.40065983,130.85,130.84,0.2]
[1763408232687,122.61183214,130.85,130.84,0.2]
[1763408232843,132.40065983,130.85,130.84,0.2]
[1763408233040,107.79529231,130.85,130.84,0.2]
[1763408233244,104.84,130.85,130.84,0.2]
[1763408233457,123.91625231,130.85,130.84,0.2]
[1763408233666,105.79529231,130.85,130.84,0.2]
[1763408233872,54.84,130.85,130.84,24.80536752]
[1763408234073,50.0,130.85,130.84,25.47536752]
[1763408234343,4.84,130.88,130.85,9.78882769]
[1763408234576,50.0,130.86,130.85,10.45882769]
[1763408234751,50.0,130.86,130.85,24.60536752]
[1763408235250,100.0,130.86,130.85,14.81653983]
[1763408235571,100.0,130.86,130.85,24.60536752]
[1763408235754,50.0,130.86,130.85,25.27536752]
[1763408236145,104.84,130.86,130.85,14.81653983]
[1763408236367,104.84,130.86,130.84,0.2]
[1763408236572,0.95529231,130.85,130.84,15.01653983]
[1763408236748,0.95529231,130.85,130.84,0.2]
[1763408236952,0.95529231,130.85,130.84,15.01653983]
[1763408237148,0.95529231,130.85,130.84,0.2]
[1763408237686,0.95529231,130.85,130.84,15.01653983]
[1763408237992,104.84,130.86,130.84,15.01653983]
[1763408238273,104.84,130.86,130.85,14.81653983]
[1763408238479,50.0,130.86,130.85,24.60536752]
[1763408238642,54.84,130.86,130.85,25.31536752]
[1763408238845,54.84,130.86,130.85,24.60536752]
[1763408239269,54.84,130.86,130.85,25.31536752]
[1763408239979,50.0,130.86,130.85,43.43632752]
[1763408240171,50.0,130.86,130.85,24.60536752]
[1763408240947,50.95521931,130.86,130.85,14.81653983]
[1763408241153,50.0,130.86,130.85,25.31536752]
[1763408241847,50.0,130.86,130.85,9.78882769]
[1763408242054,50.0,130.86,130.85,24.60536752]
[1763408242261,50.0,130.86,130.85,25.31536752]
[1763408242772,50.0,130.86,130.85,24.60536752]
[1763408242945,50.0,130.85,130.84,0.2]
[1763408243149,50.0,130.85,130.84,24.80536752]
[1763408243550,50.0,130.85,130.84,25.51536752]
[1763408243746,50.0,130.91,130.85,9.78882769]
[1763408243988,50.0,130.86,130.85,10.49882769]
[1763408244254,50.0,130.86,130.85,27.90978769]
[1763408244652,50.0,130.86,130.85,28.61978769]
[1763408244850,50.0,130.86,130.85,9.78882769]
[1763408245074,50.0,130.86,130.85,25.31536752]
[1763408245788,54.84,130.87,130.86,9.78882769]
[1763408246091,54.12,130.87,130.86,24.60536752]
[1763408246265,50.0,130.85,130.84,0.2]
[1763408246477,100.0,130.85,130.84,15.01653983]
[1763408246858,100.95529231,130.85,130.84,15.01653983]
[1763408247274,50.0,130.85,130.84,24.80536752]
[1763408247452,50.0,130.85,130.84,15.01653983]
[1763408247649,51.64529231,130.85,130.84,0.2]
[1763408248053,53.64529231,130.85,130.84,0.2]
[1763408248554,68.46183214,130.85,130.84,0.2]
[1763408248982,78.25065983,130.85,130.84,0.2]
[1763408249156,68.46183214,130.85,130.84,0.2]
[1763408249475,78.25065983,130.85,130.84,0.2]
[1763408249681,53.64529231,130.85,130.84,0.2]
[1763408249986,68.46183214,130.85,130.84,0.2]
[1763408250277,78.25065983,130.85,130.84,0.2]
[1763408250989,109.27634103,130.85,130.84,0.2]
[1763408251198,100.0,130.64,130.63,14.81653983]
[1763408251520,50.0,130.6,130.59,0.18007739]
[1763408251689,54.84,130.6,130.59,0.18007739]
[1763408251860,54.84,130.6,130.59,0.89007739]
[1763408252278,54.84,130.6,130.59,10.67890508]
[1763408252461,54.84,130.6,130.59,0.89007739]
[1763408252661,54.84,130.6,130.59,15.70661722]
[1763408252973,50.0,130.6,130.59,25.49544491]
[1763408253175,50.0,130.63,130.62,27.90978769]